[Event "Titled Tuesday Blitz April 11 Early 2023"]
[White "Einarsson, Halldor Gretar"]
[Black "NtcPou"]
[WhiteFideId "2300150"]
[WhiteElo "2142"]
[BlackElo "1967"]
[Result "1-0"]
[Round "06"]
[TimeControl "180+2"]
[Date "2023.04.11"]
[WhiteClock "0:00:03"]
[BlackClock "0:00:04"]

1. d4 {[%clk 0:03:00]}  d5 {[%clk 0:02:59]} 2. Nf3 {[%clk 0:02:59]}  c6 {[%clk 0:02:58]} 3. c4 {[%clk 0:02:58]}  Nf6 {[%clk 0:02:57]} 4. Nc3 {[%clk 0:02:56]}  a6 {[%clk 0:02:57]} 5. g3 {[%clk 0:02:52]}  b5 {[%clk 0:02:46]} 6. b3 {[%clk 0:02:46]}  g6 {[%clk 0:02:28]} 7. Bg2 {[%clk 0:02:44]}  Bg7 {[%clk 0:02:29]} 8. O-O {[%clk 0:02:43]}  O-O {[%clk 0:02:29]} 9. Ne5 {[%clk 0:02:30]}  Bb7 {[%clk 0:02:16]} 10. a4 {[%clk 0:02:19]}  Nbd7 {[%clk 0:02:01]} 11. cxd5 {[%clk 0:01:51]}  Nxd5 {[%clk 0:01:50]} 12. Bxd5 {[%clk 0:01:31]}  cxd5 {[%clk 0:01:47]} 13. f4 {[%clk 0:01:14]}  b4 {[%clk 0:01:37]} 14. Na2 {[%clk 0:01:08]}  a5 {[%clk 0:01:37]} 15. Bb2 {[%clk 0:00:58]}  f6 {[%clk 0:01:28]} 16. Nf3 {[%clk 0:00:53]}  Re8 {[%clk 0:01:20]} 17. Nc1 {[%clk 0:00:52]}  e5 {[%clk 0:01:20]} 18. fxe5 {[%clk 0:00:50]}  fxe5 {[%clk 0:01:20]} 19. e3 {[%clk 0:00:44]}  e4 {[%clk 0:01:13]} 20. Nh4 {[%clk 0:00:38]}  Bh6 {[%clk 0:01:11]} 21. Ng2 {[%clk 0:00:37]}  Nf6 {[%clk 0:01:04]} 22. Ne2 {[%clk 0:00:33]}  Ng4 {[%clk 0:01:02]} 23. Nef4 {[%clk 0:00:30]}  Qd7 {[%clk 0:00:54]} 24. Qd2 {[%clk 0:00:21]}  Ba6 {[%clk 0:00:50]} 25. Rfc1 {[%clk 0:00:19]}  Rec8 {[%clk 0:00:45]} 26. Rc5 {[%clk 0:00:19]}  Rxc5 {[%clk 0:00:45]} 27. dxc5 {[%clk 0:00:18]}  Bd3 {[%clk 0:00:39]} 28. Nxd3 {[%clk 0:00:15]}  exd3 {[%clk 0:00:37]} 29. Qxd3 {[%clk 0:00:15]}  Re8 {[%clk 0:00:32]} 30. Bd4 {[%clk 0:00:12]}  Bg7 {[%clk 0:00:30]} 31. Rf1 {[%clk 0:00:11]}  Qe6 {[%clk 0:00:25]} 32. Nf4 {[%clk 0:00:11]}  Qe4 {[%clk 0:00:24]} 33. Qxe4 {[%clk 0:00:10]}  Rxe4 {[%clk 0:00:24]} 34. Nxd5 {[%clk 0:00:10]}  Bxd4 {[%clk 0:00:23]} 35. exd4 {[%clk 0:00:08]}  Rxd4 {[%clk 0:00:22]} 36. Ne7+ {[%clk 0:00:08]}  Kg7 {[%clk 0:00:21]} 37. c6 {[%clk 0:00:08]}  Rd2 {[%clk 0:00:17]} 38. c7 {[%clk 0:00:07]}  Ne3 {[%clk 0:00:17]} 39. Re1 {[%clk 0:00:06]}  Rg2+ {[%clk 0:00:16]} 40. Kh1 {[%clk 0:00:06]}  Rc2 {[%clk 0:00:16]} 41. Rxe3 {[%clk 0:00:05]}  Rxc7 {[%clk 0:00:16]} 42. Nd5 {[%clk 0:00:05]}  Rc2 {[%clk 0:00:14]} 43. Re7+ {[%clk 0:00:04]}  Kh6 {[%clk 0:00:14]} 44. Nf4 {[%clk 0:00:03]}  Rc3 {[%clk 0:00:08]} 45. h4 {[%clk 0:00:03]}  Rxb3 {[%clk 0:00:07]} 46. Kh2 {[%clk 0:00:04]}  Ra3 {[%clk 0:00:06]} 47. Ne6 {[%clk 0:00:04]}  Rxa4 {[%clk 0:00:04]} 48. Ng5 {[%clk 0:00:04]}  Kh5 {[%clk 0:00:04]} 49. Kh3 {[%clk 0:00:04]}  h6 {[%clk 0:00:04]} 50. g4# {[%clk 0:00:03]} 1-0


[Site "https://www.chess.com"]

[Event "Titled Tuesday Blitz April 11 Early 2023"]
[White "rionelG"]
[Black "Lohani, Sujana"]
[BlackFideId "12311987"]
[WhiteElo "2165"]
[BlackElo "1718"]
[Result "1-0"]
[Round "06"]
[TimeControl "180+2"]
[Date "2023.04.11"]
[WhiteClock "0:00:20"]
[BlackClock "0:00:01"]

1. e4 {[%clk 0:02:34]}  g6 {[%clk 0:03:00]} 2. d4 {[%clk 0:02:33]}  Bg7 {[%clk 0:03:01]} 3. Nc3 {[%clk 0:02:33]}  d6 {[%clk 0:02:55]} 4. Be3 {[%clk 0:02:29]}  c6 {[%clk 0:02:54]} 5. Qd2 {[%clk 0:02:28]}  b5 {[%clk 0:02:54]} 6. O-O-O {[%clk 0:02:28]}  b4 {[%clk 0:02:53]} 7. Nce2 {[%clk 0:02:28]}  Qa5 {[%clk 0:02:51]} 8. Kb1 {[%clk 0:02:26]}  Be6 {[%clk 0:02:51]} 9. Nc1 {[%clk 0:02:27]}  Nf6 {[%clk 0:02:41]} 10. f3 {[%clk 0:02:26]}  h5 {[%clk 0:02:38]} 11. Nh3 {[%clk 0:02:14]}  Bxh3 {[%clk 0:02:31]} 12. gxh3 {[%clk 0:02:13]}  Nbd7 {[%clk 0:02:31]} 13. Rg1 {[%clk 0:02:10]}  c5 {[%clk 0:02:28]} 14. Rg5 {[%clk 0:02:00]}  Bh6 {[%clk 0:02:15]} 15. Rg1 {[%clk 0:01:59]}  Bxe3 {[%clk 0:02:09]} 16. Qxe3 {[%clk 0:02:00]}  cxd4 {[%clk 0:02:08]} 17. Qxd4 {[%clk 0:01:56]}  Ne5 {[%clk 0:01:50]} 18. Be2 {[%clk 0:01:53]}  O-O {[%clk 0:01:42]} 19. f4 {[%clk 0:01:52]}  Nc6 {[%clk 0:01:39]} 20. Qc4 {[%clk 0:01:49]}  Qc5 {[%clk 0:01:32]} 21. Rxg6+ {[%clk 0:01:44]}  Kh7 {[%clk 0:01:26]} 22. Qxc5 {[%clk 0:01:25]}  dxc5 {[%clk 0:01:25]} 23. Rg5 {[%clk 0:01:25]}  Nxe4 {[%clk 0:01:24]} 24. Bd3 {[%clk 0:01:26]}  f5 {[%clk 0:01:22]} 25. Bxe4 {[%clk 0:01:10]}  fxe4 {[%clk 0:01:19]} 26. Rdg1 {[%clk 0:01:01]}  Rf6 {[%clk 0:01:02]} 27. Rxc5 {[%clk 0:00:57]}  Raf8 {[%clk 0:00:48]} 28. Ne2 {[%clk 0:00:55]}  Nd8 {[%clk 0:00:39]} 29. Rxh5+ {[%clk 0:00:44]}  Rh6 {[%clk 0:00:38]} 30. Re5 {[%clk 0:00:45]}  Rf7 {[%clk 0:00:33]} 31. Rxe4 {[%clk 0:00:44]}  Rxh3 {[%clk 0:00:33]} 32. Rxb4 {[%clk 0:00:43]}  Rxh2 {[%clk 0:00:31]} 33. Nc1 {[%clk 0:00:42]}  Ne6 {[%clk 0:00:30]} 34. Nd3 {[%clk 0:00:41]}  Rg7 {[%clk 0:00:19]} 35. Re1 {[%clk 0:00:38]}  Rg6 {[%clk 0:00:10]} 36. f5 {[%clk 0:00:38]}  Rgg2 {[%clk 0:00:10]} 37. fxe6 {[%clk 0:00:33]}  Rxc2 {[%clk 0:00:04]} 38. a3 {[%clk 0:00:32]}  Rcd2 {[%clk 0:00:03]} 39. Nf4 {[%clk 0:00:23]}  Kg7 {[%clk 0:00:01]} 40. Rb7 {[%clk 0:00:20]}  Kf6 {[%clk 0:00:01]} 41. Rf1 {[%clk 0:00:20]} 1-0


[Site "https://www.chess.com"]

[Event "Titled Tuesday Blitz April 11 Early 2023"]
[White "Le, Tuan Minh"]
[Black "Corrales Jimenez, Fidel"]
[WhiteFideId "12401153"]
[BlackFideId "3506690"]
[WhiteElo "2566"]
[BlackElo "2541"]
[Result "0-1"]
[Round "07"]
[TimeControl "180+2"]
[Date "2023.04.11"]
[WhiteClock "0:00:05"]
[BlackClock "0:00:17"]

1. d4 {[%clk 0:03:00]}  Nf6 {[%clk 0:02:58]} 2. Nf3 {[%clk 0:03:01]}  e6 {[%clk 0:02:57]} 3. Bf4 {[%clk 0:03:01]}  Bd6 {[%clk 0:02:56]} 4. Bg3 {[%clk 0:03:00]}  O-O {[%clk 0:02:55]} 5. Nbd2 {[%clk 0:03:00]}  h6 {[%clk 0:02:52]} 6. e4 {[%clk 0:03:00]}  Bxg3 {[%clk 0:02:52]} 7. hxg3 {[%clk 0:03:00]}  d6 {[%clk 0:02:53]} 8. Bd3 {[%clk 0:03:00]}  Nc6 {[%clk 0:02:51]} 9. c3 {[%clk 0:02:57]}  e5 {[%clk 0:02:51]} 10. O-O {[%clk 0:02:54]}  Re8 {[%clk 0:02:50]} 11. Re1 {[%clk 0:02:53]}  Bg4 {[%clk 0:02:49]} 12. Qb3 {[%clk 0:02:50]}  Bxf3 {[%clk 0:02:45]} 13. Nxf3 {[%clk 0:02:50]}  Rb8 {[%clk 0:02:45]} 14. Rad1 {[%clk 0:02:50]}  a6 {[%clk 0:02:43]} 15. a4 {[%clk 0:02:45]}  Ng4 {[%clk 0:02:43]} 16. Qc4 {[%clk 0:02:25]}  Qf6 {[%clk 0:02:42]} 17. d5 {[%clk 0:02:17]}  Ne7 {[%clk 0:02:06]} 18. Qxc7 {[%clk 0:02:04]}  g5 {[%clk 0:02:05]} 19. Rd2 {[%clk 0:01:43]}  h5 {[%clk 0:02:00]} 20. Bf1 {[%clk 0:01:16]}  Rec8 {[%clk 0:01:59]} 21. Qb6 {[%clk 0:01:14]}  h4 {[%clk 0:01:57]} 22. gxh4 {[%clk 0:01:09]}  gxh4 {[%clk 0:01:58]} 23. Rd3 {[%clk 0:00:49]}  Ng6 {[%clk 0:01:57]} 24. Nd2 {[%clk 0:00:43]}  Rc5 {[%clk 0:01:57]} 25. Rf3 {[%clk 0:00:42]}  Qg5 {[%clk 0:01:57]} 26. Nb3 {[%clk 0:00:40]}  h3 {[%clk 0:01:42]} 27. Nxc5 {[%clk 0:00:27]}  hxg2 {[%clk 0:01:41]} 28. Bxg2 {[%clk 0:00:25]}  dxc5 {[%clk 0:01:34]} 29. Qxc5 {[%clk 0:00:21]}  Kg7 {[%clk 0:01:25]} 30. Rg3 {[%clk 0:00:17]}  Rh8 {[%clk 0:01:22]} 31. Qe3 {[%clk 0:00:13]}  Qh4 {[%clk 0:01:19]} 32. Rxg4 {[%clk 0:00:13]}  Qxg4 {[%clk 0:01:17]} 33. Qg3 {[%clk 0:00:14]}  Qh5 {[%clk 0:01:17]} 34. c4 {[%clk 0:00:13]}  Qh6 {[%clk 0:01:16]} 35. Rd1 {[%clk 0:00:12]}  Kf6 {[%clk 0:01:12]} 36. d6 {[%clk 0:00:13]}  Nf4 {[%clk 0:01:13]} 37. Kf1 {[%clk 0:00:09]}  a5 {[%clk 0:00:41]} 38. c5 {[%clk 0:00:09]}  Qh7 {[%clk 0:00:17]} 39. Qg4 {[%clk 0:00:09]}  Rg8 {[%clk 0:00:18]} 40. Qe6+ {[%clk 0:00:05]}  fxe6 {[%clk 0:00:17]} 0-1


[Site "https://www.chess.com"]

[Event "Titled Tuesday Blitz April 11 Early 2023"]
[White "Zakhartsov, Vladimir"]
[Black "Terry, Renato"]
[WhiteFideId "4145097"]
[BlackFideId "3803457"]
[WhiteElo "2497"]
[BlackElo "2575"]
[Result "1-0"]
[Round "07"]
[TimeControl "180+2"]
[Date "2023.04.11"]
[WhiteClock "0:00:05"]
[BlackClock "0:00:06"]

1. e4 {[%clk 0:02:56]}  e6 {[%clk 0:03:00]} 2. d4 {[%clk 0:02:56]}  d5 {[%clk 0:03:01]} 3. Nd2 {[%clk 0:02:57]}  Be7 {[%clk 0:03:01]} 4. c3 {[%clk 0:02:54]}  c5 {[%clk 0:03:01]} 5. e5 {[%clk 0:02:54]}  Nc6 {[%clk 0:03:00]} 6. Ndf3 {[%clk 0:02:55]}  cxd4 {[%clk 0:03:00]} 7. cxd4 {[%clk 0:02:56]}  Bb4+ {[%clk 0:03:00]} 8. Bd2 {[%clk 0:02:56]}  Qb6 {[%clk 0:03:01]} 9. Bxb4 {[%clk 0:02:56]}  Qxb4+ {[%clk 0:03:02]} 10. Qd2 {[%clk 0:02:56]}  Bd7 {[%clk 0:03:02]} 11. O-O-O {[%clk 0:02:47]}  Rc8 {[%clk 0:02:56]} 12. Qxb4 {[%clk 0:02:36]}  Nxb4+ {[%clk 0:02:57]} 13. Kb1 {[%clk 0:02:36]}  Ne7 {[%clk 0:02:56]} 14. Ne2 {[%clk 0:02:29]}  Ba4 {[%clk 0:02:43]} 15. b3 {[%clk 0:02:12]}  Bd7 {[%clk 0:02:38]} 16. Rd2 {[%clk 0:02:11]}  O-O {[%clk 0:02:38]} 17. Nf4 {[%clk 0:02:10]}  Ng6 {[%clk 0:02:34]} 18. Nxg6 {[%clk 0:02:05]}  fxg6 {[%clk 0:02:33]} 19. a3 {[%clk 0:02:03]}  Nc6 {[%clk 0:02:33]} 20. Ne1 {[%clk 0:01:54]}  Rc7 {[%clk 0:02:15]} 21. Nc2 {[%clk 0:01:41]}  g5 {[%clk 0:02:09]} 22. f3 {[%clk 0:01:40]}  Rfc8 {[%clk 0:02:08]} 23. Kb2 {[%clk 0:01:38]}  Na5 {[%clk 0:02:06]} 24. Bd3 {[%clk 0:01:31]}  Rc3 {[%clk 0:01:56]} 25. Na1 {[%clk 0:01:31]}  R3c7 {[%clk 0:01:37]} 26. h4 {[%clk 0:01:09]}  gxh4 {[%clk 0:01:35]} 27. Rxh4 {[%clk 0:01:10]}  h6 {[%clk 0:01:36]} 28. Nc2 {[%clk 0:01:02]}  a6 {[%clk 0:01:33]} 29. Rh1 {[%clk 0:00:45]}  Bb5 {[%clk 0:01:29]} 30. Bg6 {[%clk 0:00:40]}  Rc3 {[%clk 0:01:23]} 31. Na1 {[%clk 0:00:39]}  Re3 {[%clk 0:01:23]} 32. a4 {[%clk 0:00:14]}  Bxa4 {[%clk 0:01:19]} 33. bxa4 {[%clk 0:00:09]}  Nc4+ {[%clk 0:01:19]} 34. Kc1 {[%clk 0:00:10]}  Ra3 {[%clk 0:00:45]} 35. Nc2 {[%clk 0:00:09]}  Nxd2 {[%clk 0:00:45]} 36. Kxd2 {[%clk 0:00:09]}  Rxa4 {[%clk 0:00:45]} 37. f4 {[%clk 0:00:08]}  Ra2 {[%clk 0:00:42]} 38. Rc1 {[%clk 0:00:06]}  b5 {[%clk 0:00:42]} 39. f5 {[%clk 0:00:07]}  Kf8 {[%clk 0:00:38]} 40. Kd1 {[%clk 0:00:04]}  Ke7 {[%clk 0:00:32]} 41. fxe6 {[%clk 0:00:02]}  Kxe6 {[%clk 0:00:32]} 42. Ne3 {[%clk 0:00:02]}  Rxc1+ {[%clk 0:00:29]} 43. Kxc1 {[%clk 0:00:03]}  Re2 {[%clk 0:00:28]} 44. Bf5+ {[%clk 0:00:03]}  Kf7 {[%clk 0:00:28]} 45. Nxd5 {[%clk 0:00:04]}  g6 {[%clk 0:00:24]} 46. Bd7 {[%clk 0:00:03]}  Re4 {[%clk 0:00:23]} 47. Kc2 {[%clk 0:00:04]}  h5 {[%clk 0:00:07]} 48. Kd3 {[%clk 0:00:04]}  Re1 {[%clk 0:00:07]} 49. e6+ {[%clk 0:00:04]}  Rxe6 {[%clk 0:00:08]} 50. Bxe6+ {[%clk 0:00:05]}  Kxe6 {[%clk 0:00:09]} 51. Nc7+ {[%clk 0:00:05]}  Kf5 {[%clk 0:00:09]} 52. Nxa6 {[%clk 0:00:06]}  h4 {[%clk 0:00:09]} 53. Nb4 {[%clk 0:00:06]}  Kf4 {[%clk 0:00:08]} 54. d5 {[%clk 0:00:06]}  Ke5 {[%clk 0:00:09]} 55. Ke3 {[%clk 0:00:06]}  Kf5 {[%clk 0:00:07]} 56. Nd3 {[%clk 0:00:06]}  g5 {[%clk 0:00:07]} 57. Nb4 {[%clk 0:00:04]}  g4 {[%clk 0:00:07]} 58. Nd3 {[%clk 0:00:02]}  Kg5 {[%clk 0:00:04]} 59. Ke4 {[%clk 0:00:03]}  g3 {[%clk 0:00:02]} 60. Kf3 {[%clk 0:00:02]}  Kf5 {[%clk 0:00:03]} 61. Nb4 {[%clk 0:00:02]}  Kg5 {[%clk 0:00:02]} 62. Nc2 {[%clk 0:00:02]}  Kf6 {[%clk 0:00:02]} 63. Kg4 {[%clk 0:00:01]}  Ke5 {[%clk 0:00:03]} 64. Nb4 {[%clk 0:00:02]}  Kd6 {[%clk 0:00:03]} 65. Kxh4 {[%clk 0:00:02]}  Kc5 {[%clk 0:00:04]} 66. Kxg3 {[%clk 0:00:03]}  Kxb4 {[%clk 0:00:05]} 67. d6 {[%clk 0:00:03]}  Kc5 {[%clk 0:00:06]} 68. d7 {[%clk 0:00:04]}  b4 {[%clk 0:00:06]} 69. d8=Q {[%clk 0:00:05]} 1-0


[Site "https://www.chess.com"]

[Event "Titled Tuesday Blitz April 11 Early 2023"]
[White "Kollars, Dmitrij"]
[Black "Svane, Frederik"]
[WhiteFideId "12909572"]
[BlackFideId "12923044"]
[WhiteElo "2584"]
[BlackElo "2502"]
[Result "0-1"]
[Round "07"]
[TimeControl "180+2"]
[Date "2023.04.11"]
[WhiteClock "0:00:02"]
[BlackClock "0:00:23"]

1. e4 {[%clk 0:03:00]}  e5 {[%clk 0:03:00]} 2. Nf3 {[%clk 0:03:00]}  Nc6 {[%clk 0:03:01]} 3. Bb5 {[%clk 0:02:58]}  Nf6 {[%clk 0:03:01]} 4. O-O {[%clk 0:02:56]}  Nxe4 {[%clk 0:03:01]} 5. Re1 {[%clk 0:02:54]}  Nd6 {[%clk 0:03:01]} 6. Bf1 {[%clk 0:02:53]}  Be7 {[%clk 0:03:00]} 7. Nxe5 {[%clk 0:02:53]}  Nxe5 {[%clk 0:02:59]} 8. Rxe5 {[%clk 0:02:54]}  O-O {[%clk 0:03:00]} 9. Nc3 {[%clk 0:02:55]}  Bf6 {[%clk 0:02:57]} 10. Re1 {[%clk 0:02:53]}  b6 {[%clk 0:02:57]} 11. Nd5 {[%clk 0:02:33]}  Bb7 {[%clk 0:02:57]} 12. Nxf6+ {[%clk 0:02:33]}  Qxf6 {[%clk 0:02:58]} 13. d3 {[%clk 0:02:29]}  Rae8 {[%clk 0:02:57]} 14. Rxe8 {[%clk 0:02:17]}  Rxe8 {[%clk 0:02:58]} 15. c3 {[%clk 0:02:18]}  h6 {[%clk 0:02:49]} 16. Bd2 {[%clk 0:02:17]}  a5 {[%clk 0:02:42]} 17. Qg4 {[%clk 0:02:14]}  Nf5 {[%clk 0:02:37]} 18. Qf4 {[%clk 0:01:55]}  d6 {[%clk 0:02:11]} 19. h3 {[%clk 0:01:54]}  g5 {[%clk 0:01:58]} 20. Qc4 {[%clk 0:01:48]}  Re7 {[%clk 0:01:58]} 21. Re1 {[%clk 0:01:48]}  Rxe1 {[%clk 0:01:58]} 22. Bxe1 {[%clk 0:01:48]}  Qe7 {[%clk 0:01:58]} 23. Bd2 {[%clk 0:01:47]}  Nh4 {[%clk 0:01:57]} 24. Qg4 {[%clk 0:01:16]}  Kg7 {[%clk 0:01:53]} 25. c4 {[%clk 0:01:15]}  Kg6 {[%clk 0:01:48]} 26. d4 {[%clk 0:01:01]}  f5 {[%clk 0:01:30]} 27. Qg3 {[%clk 0:01:01]}  Qe4 {[%clk 0:01:23]} 28. Qe3 {[%clk 0:00:55]}  f4 {[%clk 0:01:19]} 29. Qxe4+ {[%clk 0:00:39]}  Bxe4 {[%clk 0:01:19]} 30. f3 {[%clk 0:00:35]}  Bxf3 {[%clk 0:01:13]} 31. Bd3+ {[%clk 0:00:28]}  Kh5 {[%clk 0:01:03]} 32. d5 {[%clk 0:00:22]}  Bxg2 {[%clk 0:00:59]} 33. Bc3 {[%clk 0:00:17]}  Bxh3 {[%clk 0:00:58]} 34. Bf6 {[%clk 0:00:17]}  Bf5 {[%clk 0:00:54]} 35. Bf1 {[%clk 0:00:16]}  g4 {[%clk 0:00:49]} 36. Bd8 {[%clk 0:00:16]}  g3 {[%clk 0:00:43]} 37. Bxc7 {[%clk 0:00:08]}  f3 {[%clk 0:00:43]} 38. Bxb6 {[%clk 0:00:08]}  Be4 {[%clk 0:00:25]} 39. a3 {[%clk 0:00:05]}  Ng6 {[%clk 0:00:22]} 40. b4 {[%clk 0:00:04]}  axb4 {[%clk 0:00:22]} 41. axb4 {[%clk 0:00:05]}  Ne5 {[%clk 0:00:23]} 42. Bd4 {[%clk 0:00:04]}  Ng4 {[%clk 0:00:23]} 43. Bh3 {[%clk 0:00:02]}  f2+ {[%clk 0:00:23]} 0-1


[Site "https://www.chess.com"]

[Event "Titled Tuesday Blitz April 11 Early 2023"]
[White "Narayanan, Srinath"]
[Black "Movahed, Sina"]
[WhiteFideId "5018420"]
[BlackFideId "42520835"]
[WhiteElo "2438"]
[BlackElo "2225"]
[Result "1-0"]
[Round "07"]
[TimeControl "180+2"]
[Date "2023.04.11"]
[WhiteClock "0:01:00"]
[BlackClock "0:00:01"]

1. Nf3 {[%clk 0:03:00]}  Nf6 {[%clk 0:02:59]} 2. c4 {[%clk 0:03:01]}  g6 {[%clk 0:02:57]} 3. g3 {[%clk 0:03:00]}  Bg7 {[%clk 0:02:57]} 4. Bg2 {[%clk 0:03:00]}  O-O {[%clk 0:02:57]} 5. O-O {[%clk 0:03:01]}  d6 {[%clk 0:02:58]} 6. d4 {[%clk 0:03:02]}  Nbd7 {[%clk 0:02:58]} 7. Nc3 {[%clk 0:03:02]}  e5 {[%clk 0:02:59]} 8. e4 {[%clk 0:03:03]}  exd4 {[%clk 0:02:57]} 9. Nxd4 {[%clk 0:03:04]}  Re8 {[%clk 0:02:58]} 10. h3 {[%clk 0:03:04]}  Nc5 {[%clk 0:02:58]} 11. Re1 {[%clk 0:03:04]}  h6 {[%clk 0:02:59]} 12. Rb1 {[%clk 0:02:59]}  a5 {[%clk 0:02:56]} 13. b3 {[%clk 0:02:59]}  c6 {[%clk 0:02:56]} 14. Bf4 {[%clk 0:02:58]}  Nh7 {[%clk 0:02:45]} 15. Qd2 {[%clk 0:02:55]}  g5 {[%clk 0:02:16]} 16. Be3 {[%clk 0:02:53]}  Nf6 {[%clk 0:02:16]} 17. Qc2 {[%clk 0:02:43]}  Qe7 {[%clk 0:02:13]} 18. Rbd1 {[%clk 0:02:16]}  a4 {[%clk 0:01:34]} 19. b4 {[%clk 0:02:09]}  Ncxe4 {[%clk 0:01:33]} 20. Nxe4 {[%clk 0:02:08]}  Nxe4 {[%clk 0:01:34]} 21. Bxe4 {[%clk 0:02:06]}  Qxe4 {[%clk 0:01:35]} 22. Bd2 {[%clk 0:02:06]}  Qxe1+ {[%clk 0:01:29]} 23. Bxe1 {[%clk 0:01:59]}  Bxd4 {[%clk 0:01:29]} 24. Rxd4 {[%clk 0:01:59]}  Rxe1+ {[%clk 0:01:28]} 25. Kg2 {[%clk 0:01:59]}  Be6 {[%clk 0:01:04]} 26. Rxd6 {[%clk 0:01:52]}  a3 {[%clk 0:01:03]} 27. Rd4 {[%clk 0:01:45]}  Re5 {[%clk 0:00:55]} 28. Qd2 {[%clk 0:01:44]}  Kg7 {[%clk 0:00:38]} 29. Qc3 {[%clk 0:01:41]}  Kg8 {[%clk 0:00:33]} 30. h4 {[%clk 0:01:28]}  g4 {[%clk 0:00:23]} 31. Qd2 {[%clk 0:01:26]}  h5 {[%clk 0:00:17]} 32. Qf4 {[%clk 0:01:02]}  Rf5 {[%clk 0:00:14]} 33. Qc7 {[%clk 0:01:02]}  b5 {[%clk 0:00:01]} 34. Qxc6 {[%clk 0:01:00]} 1-0


[Site "https://www.chess.com"]

[Event "Titled Tuesday Blitz April 11 Early 2023"]
[White "Anton Guijarro, David"]
[Black "Srihari L R"]
[WhiteFideId "2285525"]
[BlackFideId "46617116"]
[WhiteElo "2618"]
[BlackElo "2334"]
[Result "1-0"]
[Round "07"]
[TimeControl "180+2"]
[Date "2023.04.11"]
[WhiteClock "0:00:33"]
[BlackClock "0:00:04"]

1. d4 {[%clk 0:03:00]}  Nf6 {[%clk 0:03:00]} 2. Nf3 {[%clk 0:03:01]}  e6 {[%clk 0:03:00]} 3. Bg5 {[%clk 0:03:01]}  b6 {[%clk 0:02:56]} 4. e4 {[%clk 0:02:59]}  Bb7 {[%clk 0:02:52]} 5. e5 {[%clk 0:02:55]}  h6 {[%clk 0:02:52]} 6. Bc1 {[%clk 0:02:52]}  Ng8 {[%clk 0:02:45]} 7. Bd3 {[%clk 0:02:50]}  d5 {[%clk 0:02:45]} 8. O-O {[%clk 0:02:48]}  c5 {[%clk 0:02:46]} 9. c3 {[%clk 0:02:48]}  Nd7 {[%clk 0:02:44]} 10. Re1 {[%clk 0:02:47]}  Ne7 {[%clk 0:02:42]} 11. Nbd2 {[%clk 0:02:41]}  g6 {[%clk 0:02:41]} 12. Nf1 {[%clk 0:02:38]}  c4 {[%clk 0:02:36]} 13. Bc2 {[%clk 0:02:37]}  b5 {[%clk 0:02:36]} 14. h4 {[%clk 0:02:34]}  Nc6 {[%clk 0:02:35]} 15. h5 {[%clk 0:02:31]}  g5 {[%clk 0:02:34]} 16. N3h2 {[%clk 0:02:28]}  Be7 {[%clk 0:02:29]} 17. Ng4 {[%clk 0:02:23]}  a5 {[%clk 0:02:22]} 18. f4 {[%clk 0:02:20]}  gxf4 {[%clk 0:02:22]} 19. Bxf4 {[%clk 0:02:20]}  Bg5 {[%clk 0:02:22]} 20. Qd2 {[%clk 0:02:16]}  Bxf4 {[%clk 0:01:28]} 21. Qxf4 {[%clk 0:02:17]}  Qg5 {[%clk 0:01:28]} 22. Qxg5 {[%clk 0:02:16]}  hxg5 {[%clk 0:01:29]} 23. Ng3 {[%clk 0:02:10]}  Ke7 {[%clk 0:01:08]} 24. Rf1 {[%clk 0:01:53]}  Rag8 {[%clk 0:01:03]} 25. Rf2 {[%clk 0:01:48]}  Nd8 {[%clk 0:01:02]} 26. b3 {[%clk 0:01:38]}  Bc6 {[%clk 0:00:54]} 27. h6 {[%clk 0:01:25]}  Nb6 {[%clk 0:00:29]} 28. Nh5 {[%clk 0:01:23]}  Rf8 {[%clk 0:00:20]} 29. h7 {[%clk 0:01:10]}  Nd7 {[%clk 0:00:20]} 30. Nhf6 {[%clk 0:01:08]}  Nxf6 {[%clk 0:00:17]} 31. Nxf6 {[%clk 0:00:58]}  b4 {[%clk 0:00:10]} 32. Rf3 {[%clk 0:00:57]}  bxc3 {[%clk 0:00:10]} 33. Rxc3 {[%clk 0:00:57]}  Bb5 {[%clk 0:00:08]} 34. bxc4 {[%clk 0:00:37]}  Bxc4 {[%clk 0:00:06]} 35. Bb3 {[%clk 0:00:38]}  Nc6 {[%clk 0:00:06]} 36. Bxc4 {[%clk 0:00:38]}  dxc4 {[%clk 0:00:05]} 37. Rxc4 {[%clk 0:00:38]}  Rc8 {[%clk 0:00:05]} 38. Rac1 {[%clk 0:00:36]}  Na7 {[%clk 0:00:04]} 39. Rxc8 {[%clk 0:00:33]} 1-0


[Site "https://www.chess.com"]

[Event "Titled Tuesday Blitz April 11 Early 2023"]
[White "So, Wesley"]
[Black "Urazayev, Arystanbek"]
[WhiteFideId "5202213"]
[BlackFideId "13709810"]
[WhiteElo "2749"]
[BlackElo "2449"]
[Result "1-0"]
[Round "07"]
[TimeControl "180+2"]
[Date "2023.04.11"]
[WhiteClock "0:01:08"]
[BlackClock "0:00:27"]

1. d4 {[%clk 0:02:56]}  Nf6 {[%clk 0:03:00]} 2. Nf3 {[%clk 0:02:55]}  e6 {[%clk 0:03:00]} 3. Bf4 {[%clk 0:02:55]}  d5 {[%clk 0:03:00]} 4. e3 {[%clk 0:02:55]}  c5 {[%clk 0:03:00]} 5. Nbd2 {[%clk 0:02:54]}  Nc6 {[%clk 0:03:01]} 6. c3 {[%clk 0:02:53]}  Nh5 {[%clk 0:03:01]} 7. Bg5 {[%clk 0:02:52]}  Qb6 {[%clk 0:03:01]} 8. Rb1 {[%clk 0:02:47]}  h6 {[%clk 0:03:02]} 9. Bh4 {[%clk 0:02:41]}  g5 {[%clk 0:03:02]} 10. Bg3 {[%clk 0:02:33]}  Nxg3 {[%clk 0:03:01]} 11. hxg3 {[%clk 0:02:34]}  Bg7 {[%clk 0:03:02]} 12. Bd3 {[%clk 0:02:29]}  Bd7 {[%clk 0:03:02]} 13. O-O {[%clk 0:02:28]}  g4 {[%clk 0:03:02]} 14. Nh4 {[%clk 0:02:17]}  h5 {[%clk 0:03:02]} 15. b4 {[%clk 0:02:17]}  cxb4 {[%clk 0:03:01]} 16. cxb4 {[%clk 0:02:18]}  O-O-O {[%clk 0:03:00]} 17. Nb3 {[%clk 0:02:12]}  Kb8 {[%clk 0:03:00]} 18. Nc5 {[%clk 0:02:11]}  Bc8 {[%clk 0:02:57]} 19. Qe2 {[%clk 0:02:07]}  Ne7 {[%clk 0:02:53]} 20. a4 {[%clk 0:02:02]}  Qd6 {[%clk 0:02:36]} 21. a5 {[%clk 0:02:03]}  Bf6 {[%clk 0:02:28]} 22. Rfc1 {[%clk 0:02:01]}  e5 {[%clk 0:02:12]} 23. dxe5 {[%clk 0:01:59]}  Qxe5 {[%clk 0:02:11]} 24. b5 {[%clk 0:01:58]}  d4 {[%clk 0:01:52]} 25. e4 {[%clk 0:01:49]}  Bxh4 {[%clk 0:01:29]} 26. gxh4 {[%clk 0:01:50]}  g3 {[%clk 0:01:30]} 27. b6 {[%clk 0:01:49]}  gxf2+ {[%clk 0:01:08]} 28. Qxf2 {[%clk 0:01:49]}  a6 {[%clk 0:01:03]} 29. Bxa6 {[%clk 0:01:46]}  bxa6 {[%clk 0:00:26]} 30. b7 {[%clk 0:01:47]}  Be6 {[%clk 0:00:27]} 31. Nxa6+ {[%clk 0:01:32]}  Ka7 {[%clk 0:00:27]} 32. Qb2 {[%clk 0:01:08]} 1-0


[Site "https://www.chess.com"]